Cogmind - Beta 14 @@@ ROGUE MODE // 2024.08.24 @ 23:57:19 Player: omnishade Result: Destroyed by C-17 Slicer with Blade Saw Performance ------------- Evolutions (2) 1000 Regions Visited (3) 600 Robots Destroyed (72) 360 Value Destroyed (2127) 2127 Prototype IDs (4) 80 Alien Tech Used (0) 0 Bonus (29) 29 TOTAL SCORE: 4196 Bonus ------- High Alert Combat Kills 29 Cogmind --------- Core Integrity 0/550 Matter 254/300 Energy 66/100 System Corruption 2% Temperature Cool (0) Movement Walking (120) Location -8/Materials Parts ------- > --- POWER (2) -------- (None) > --- PROPULSION (2) --- Improved Carbon-fiber Leg Improved Carbon-fiber Leg > --- UTILITY (4) ------ Machine Analyzer > --- WEAPON (3) ------- (None) > --- INVENTORY (5) ---- (None) Peak State ------------ > --- POWER ------------ Light Deuterium Engine Light Nuclear Core > --- PROPULSION ------- Wheel Wheel > --- UTILITY ---------- Improved Heat Sink Small Storage Unit Large Battery Machine Analyzer > --- WEAPON ----------- Pulse Rifle Ion Cannon High-powered Shotgun > --- INVENTORY -------- Improved Hover Unit Aerolev Unit VTOL Module Cesium-ion Thruster Improved Terrain Scan Processor Reaction Control System Field Recycling Unit Rocket Launcher [Rating: 27] Favorites ----------- Power Ion Engine Engine Ion Engine Power Core Light Nuclear Core Propulsion Improved Aluminum Leg Treads Light Treads Leg Improved Aluminum Leg Wheel Wheel Hover Unit Improved Hover Unit Flight Unit VTOL Module Utility Improved Heat Sink Device Improved Heat Sink Storage Large Battery Processor Signal Interpreter Protection Improved Utility Shielding Weapon Shock Rifle Energy Gun Shock Rifle Energy Cannon Ion Cannon Ballistic Gun Heavy Assault Rifle Launcher Grenade Launcher Special Weapon Welding Torch Impact Weapon Hammer Special Melee Weapon Datajack Build | -11 -10 -9 -8 ------- Run | Yrd Mat Mat Mat Slots Evolved 4 | . . 2 2 Power 1 | . . . 1 Propulsion . | . . . . Utility 2 | . . 1 1 Weapon 1 | . . 1 . Parts Attached 125 | 8 21 38 58 Power 18 | 1 1 5 11 Engine 13 | 1 1 5 6 Core 5 | . . . 5 Reactor . | . . . . Propulsion 32 | 4 2 9 17 Treads 5 | . 1 3 1 Leg 13 | 2 . 6 5 Wheel 5 | 2 1 . 2 Hover 6 | . . . 6 Flight 3 | . . . 3 Utility 26 | 1 9 9 7 Device 9 | 1 3 4 1 Storage 9 | . 6 . 3 Processor 5 | . . 4 1 Hackware . | . . . . Protection 3 | . . 1 2 Artifact . | . . . . Weapon 49 | 2 9 15 23 Energy Gun 21 | 1 2 12 6 Energy Cannon 9 | . . . 9 Ballistic Gun 4 | 1 . 1 2 Ballistic Cannon . | . . . . Launcher 6 | . 3 . 3 Special Weapon 5 | . 2 1 2 Impact Weapon 1 | . 1 . . Slashing Weapon . | . . . . Piercing Weapon . | . . . . Special Melee Weapon 3 | . 1 1 1 Unidentified Prototypes 1 | . . 1 . Parts Lost 32 | . 7 8 17 Power 8 | . 2 1 5 Propulsion 9 | . 2 1 6 Utility 3 | . 1 1 1 Weapon 12 | . 2 5 5 Highest Loss Streak 6 | . 6 2 5 To Critical Strikes 1 | . . . 1 Average Slot Usage (%) 87 | . 86 93 78 Engine 7 | . 7 10 4 Core 1 | . . . 5 Treads 6 | . 10 7 1 Leg 6 | . . 11 5 Wheel 4 | . 15 . 2 Hover 1 | . . . 4 Device 12 | . 12 15 8 Storage 7 | . 13 2 10 Processor 7 | . . 11 8 Protection 1 | . . 2 1 Energy Gun 15 | . 3 25 7 Energy Cannon 2 | . . . 10 Ballistic Gun 1 | . 1 1 2 Launcher 4 | . 11 1 2 Impact Weapon 1 | . 6 . . Special Melee Weapon 1 | . 2 1 . Peak Build Rating 27 | 6 8 23 27 Average Rating 15 | 3 6 17 19 On Entrance 5 | . 6 3 14 Naked Turns . | . . . . Heaviest Build 89 | 8 89 23 34 Greatest Support 43 | 20 20 43 36 Greatest Overweight (x) 26 | . 26 4 4 Average Overweight (x) 1 | . 3 . . Largest Inventory Capacity 25 | 5 25 5 8 Average Capacity 8 | 5 18 5 6 Most Carried 11 | 2 11 5 8 Average Carried 5 | . 6 4 4 Final Capacity 5 | 5 5 5 5 Final Carried 5 | . 5 4 . Class Distribution -------------------- 43% | Mutant 18% | Gunner 8% | Scavenger-Gunner 8% | Tank 7% | Skirmisher 6% | Scavenger-Tank Dominant Class ---------------- Mutant | -10/Materials Gunner | -9/Materials Scavenger-Tank | -8/Materials Resources | -11 -10 -9 -8 ----------- Run | Yrd Mat Mat Mat Matter Collected 1606 | 283 152 632 539 Remotely . | . . . . Salvage Created 2497 | 42 198 1200 1057 Parts 132 | 1 14 72 45 Haulers Intercepted . | . . . . Recyclers Shooed . | . . . . Parts Field Recycled . | . . . . Retrieved Matter . | . . . . Parts Self-Destructed . | . . . . Prevented . | . . . . Kills | -11 -10 -9 -8 ------- Run | Yrd Mat Mat Mat Combat Hostiles Destroyed 58 | 1 11 29 17 Guns 31 | 1 2 22 6 Cannons 10 | . . . 10 AOE 15 | . 9 6 . Classes Destroyed 10 | 1 4 3 2 Builder 2 | . 1 . 1 Recycler 3 | . . 1 2 Mechanic 1 | . . . 1 Operator 1 | . 1 . . Watcher 7 | . 1 3 3 Swarmer 16 | . 4 10 2 Grunt 34 | 1 7 14 12 Brawler 1 | . . 1 . Sentry 4 | . . 4 . Hunter 3 | . . . 3 Best Kill Streak 4 | 1 3 4 4 Combat Bots Only 3 | 1 2 3 3 Max Kills in Single Turn 3 | 1 2 3 2 Gunslinging 1 | . . 1 . Exploded 3 | . 2 3 . Melee . | . . . . Uniques/NPCs Destroyed . | . . . . Combat | -11 -10 -9 -8 -------- Run | Yrd Mat Mat Mat Hostile Shots Fired 340 | 1 71 106 162 Missed 92 | . 23 32 37 Damage Taken 3914 | 11 774 1073 2056 Core 990 | . 238 196 556 Absorbed by Shields . | . . . . Regen/Repaired (Parts) 91 | . . 91 . Core Remaining (%) 51 | 100 4 51 . Volleys Fired 167 | 1 32 57 77 Largest 3 | 2 2 3 3 Hottest 200 | 70 200 151 181 Shots Fired 337 | 2 44 125 166 Gun 218 | 2 23 125 68 Cannon 95 | . . . 95 Launcher 21 | . 19 . 2 Special 3 | . 2 . 1 Kinetic 30 | 1 11 7 11 Thermal 187 | 1 14 23 149 Explosive 21 | . 19 . 2 Electromagnetic 98 | . . 95 3 Robot Hit Streak 17 | 1 3 11 17 Robot Miss Streak 6 | 1 6 6 4 Penetration Max . | . . . . Secondary Targets 7 | . 1 6 . Max Gunslinging Chain 1 | . 1 1 . Shots Hit Robots 197 | 1 16 75 105 Core Hits 105 | 1 24 40 40 Critical Kills . | . . . . Critical Parts Destroyed . | . . . . Critical Strikes 6 | . . 1 5 Burn 6 | . . 1 5 Melee Attacks 9 | . 5 3 1 Impact . | . . . . Slashing . | . . . . Piercing . | . . . . Sneak Attacks 5 | . 2 2 1 Combat Hostiles . | . . . . Follow-up Attacks . | . . . . Damage Inflicted 4650 | 15 976 1443 2216 Guns 2065 | 15 123 1175 752 Cannons 1378 | . . . 1378 Explosions 1207 | . 853 268 86 Melee . | . . . . Ramming . | . . . . Kinetic 173 | 15 36 14 108 Thermal 2504 | . 87 421 1996 Explosive 939 | . 853 . 86 Electromagnetic 1034 | . . 1008 26 Impact . | . . . . Slashing . | . . . . Piercing . | . . . . Highest Corruption 2 | . . 1 2 Average Corruption 1 | . . 1 2 Corruption Purged . | . . . . Corruption Blocked . | . . . . Effects 3 | . . 3 . Message Errors 1 | . . 1 . Matter Fused 1 | . . 1 . Energy Discharges 1 | . . 1 . Overload Shots . | . . . . Overflow Damage 13 | . 5 8 . Projectiles . | . . . . Explosions 13 | . 5 8 . Melee . | . . . . Knockbacks . | . . . . Impact . | . . . . Kinetic . | . . . . Secondary . | . . . . Self-Inflicted Damage 198 | . 49 136 13 Shots 11 | . 5 5 1 Rammed . | . . . . Targets Rammed . | . . . . Kicked . | . . . . Crushed . | . . . . Highest Temperature 425 | 15 3 209 425 Average Temperature 89 | 12 1 53 107 Received Heat Transfer 915 | 6 192 276 441 Effects 3 | . . . 3 Shutdowns 1 | . . . 1 Short Circuit 2 | . . . 2 Siege Activations . | . . . . Robots Corrupted 1 | . . 1 . Combat Hostiles 1 | . . 1 . Parts Fried 5 | . . 5 . Impact Corruptions . | . . . . Robots Melted 1 | . . . 1 Combat Hostiles 1 | . . . 1 Parts Melted 15 | . 1 1 13 Heat Transferred 4975 | . 259 757 3959 Parts Sabotaged . | . . . . Parts Stolen . | . . . . Parts Stripped . | . . . . Power Chain Reactions 6 | . . 6 . Alert | -11 -10 -9 -8 ------- Run | Yrd Mat Mat Mat Peak Influence 454 | 20 276 454 409 Initial 171 | . 13 13 171 Average 187 | 3 109 191 266 Maximum Alert Level 2 | . 1 2 2 Low Security (%) 57 | 100 96 58 15 Level 1 39 | . 3 36 82 Level 2 2 | . . 5 1 Level 3 . | . . . . Level 4 . | . . . . Level 5 . | . . . . High Security . | . . . . Max Security . | . . . . Squads Dispatched 17 | . 3 7 7 Investigation 4 | . . 2 2 Extermination . | . . . . Reinforcement 10 | . 3 5 2 Assault . | . . . . Garrison 3 | . . . 3 Intercept . | . . . . Searches Triggered . | . . . . Construction Impeded . | . . . . Haulers Reinforced . | . . . . Active Scanning Responses . | . . . . Cargo Convoy Interrupts . | . . . . Stealth | -11 -10 -9 -8 --------- Run | Yrd Mat Mat Mat Distress Signals 7 | . 2 1 4 Communications Jammed . | . . . . Distress Signals . | . . . . Times Spotted 98 | 1 24 37 36 Peak Tracking Total 8 | 1 5 4 8 Tactical Retreats 9 | . 2 3 4 Traps | -11 -10 -9 -8 ------- Run | Yrd Mat Mat Mat Traps Triggered 5 | . . 3 2 Indirectly . | . . . . Trap Hack Attempts . | . . . . Triggered . | . . . . Disarmed . | . . . . Reprogrammed . | . . . . Reused . | . . . . Traps Extracted . | . . . . Installed . | . . . . Triggered . | . . . . Machines | -11 -10 -9 -8 ---------- Run | Yrd Mat Mat Mat Machines Disabled 5 | . 1 3 1 Max in Single Turn 2 | . 1 2 1 Machines Repaired . | . . . . Machines Dismantled . | . . . . Machines Sabotaged . | . . . . Overloaded Fab Kills . | . . . . Hacking | -11 -10 -9 -8 --------- Run | Yrd Mat Mat Mat Machines Accessed 13 | . 3 6 4 Terminals 7 | . 3 2 2 Fabricators . | . . . . Repair Stations 2 | . . 2 . Recycling Units 1 | . . . 1 Scanalyzers 3 | . . 2 1 Garrison Access . | . . . . Total Hacks 37 | . 6 18 13 Successful 30 | . 5 13 12 Failed 7 | . 1 5 1 Catastrophic . | . . . . Database Lockouts . | . . . . Manual . | . . . . Terminals 13 | . 6 3 4 Fabricators . | . . . . Repair Stations 8 | . . 8 . Recycling Units 2 | . . . 2 Scanalyzers 14 | . . 7 7 Garrison Access . | . . . . Terminal Hacks 12 | . 5 3 4 Record 7 | . 1 2 4 Prototype ID Bank 1 | . 1 . . Alert Level 2 | . 2 . . Locate Traps 1 | . 1 . . Maintenance Status 1 | . . 1 . Fabricator Hacks . | . . . . Repair Station Hacks 4 | . . 4 . Scan Component 2 | . . 2 . Repair 2 | . . 2 . Recycling Unit Hacks 2 | . . . 2 Report Inventory 1 | . . . 1 Retrieve Components 1 | . . . 1 Scanalyzer 12 | . . 6 6 Insert Component 6 | . . 3 3 Analyze 6 | . . 3 3 Garrison Access Hacks . | . . . . Unauthorized Hacks . | . . . . Terminals . | . . . . Fabricators . | . . . . Repair Stations . | . . . . Recycling Units . | . . . . Scanalyzers . | . . . . Garrison Access . | . . . . Data Cores Recovered . | . . . . Used . | . . . . Hacking Detections 9 | . 3 3 3 Full Trace Events 3 | . . 1 2 Feedback Events . | . . . . Feedback Blocked . | . . . . Robot Schematics Acquired . | . . . . Robots Built . | . . . . Authchips . | . . . . Time . | . . . . Total Robot Build Rating . | . . . . Part Schematics Acquired 5 | . . 2 3 Parts Built . | . . . . Authchips . | . . . . Time . | . . . . Total Part Build Rating . | . . . . Parts Repaired 2 | . . 2 . Time 70 | . . 70 . Parts Recycled . | . . . . Recycled Matter . | . . . . Retrieved Matter . | . . . . Retrieved Components 9 | . . . 9 Parts Scanalyzed 6 | . . 3 3 Part Schematics Acquired 5 | . . 2 3 Parts Damaged . | . . . . Bothacking | -11 -10 -9 -8 ------------ Run | Yrd Mat Mat Mat Used RIF Installer . | . . . . Robots Hacked 5 | . 2 2 1 Non-combat 4 | . 1 2 1 Combat 1 | . 1 . . Robot Hacks Applied 7 | . 3 3 1 parse_system 2 | . 2 . . no_distress 5 | . 1 3 1 Relay Couplers Released . | . . . . Fabnet Peak Effective % . | . . . . Robots Rewired . | . . . . Allies Hacked . | . . . . Hacks Repelled . | . . . . Allies | -11 -10 -9 -8 -------- Run | Yrd Mat Mat Mat Total Allies . | . . . . Largest Group . | . . . . Highest-Rated Group . | . . . . Highest-Rated Ally . | . . . . Total Orders . | . . . . Ally Attacks . | . . . . Total Damage . | . . . . Kills . | . . . . Allies Corrupted . | . . . . Allies Melted . | . . . . Intel | -11 -10 -9 -8 ------- Run | Yrd Mat Mat Mat Robot Analysis Total . | . . . . Derelict Logs Recovered . | . . . . Drone Launches . | . . . . Drone Recoveries . | . . . . Exploration | -11 -10 -9 -8 ------------- Run | Yrd Mat Mat Mat Turns Passed 5074 | 82 1267 2420 1305 Spaces Moved 2831 | 80 540 1316 895 Core 195 | 17 88 89 1 Treads 351 | . . 307 44 Legs 1113 | 7 . 920 186 Wheels 667 | 56 452 . 159 Hover 133 | . . . 133 Flight 372 | . . . 372 Fastest Speed 32 | 50 80 120 32 Average Speed 131 | 77 139 152 100 Slowest Speed 1350 | 120 1350 250 300 Overloaded Moves . | . . . . Propulsion Burnouts . | . . . . Robots Hopped 15 | . . . 15 Cave-ins Triggered . | . . . . Exploration Rate (%) 53 | 6 77 85 45 Regions Visited 3 Branch Regions . Pre-discovered Areas . | . . . . Known Exits Taken 1 | . . 1 . Unknown Exits Taken 2 | 1 1 . . Scrap Searched . | . . . . Spaces Dug 8 | . 2 . 6 Terrain Destroyed 132 | . 77 15 40 Melee . | . . . . Projectile 18 | . 2 . 16 AOE 114 | . 75 15 24 Terrain Rammed . | . . . . Walls Destroyed . | . . . . Machines Disabled . | . . . . Actions | -11 -10 -9 -8 --------- Run | Yrd Mat Mat Mat Total 3868 | 98 1002 1615 1153 Wait 596 | . 376 152 68 Move 2800 | 79 539 1315 867 Hop 13 | . . . 13 Pick Up 87 | 8 18 27 34 Fast Attach 20 | . . 14 6 Attach 57 | 6 8 13 30 Detach 13 | . 2 1 10 Swap 48 | 2 13 11 22 Drop 58 | 2 9 22 25 Fire 167 | 1 32 57 77 Melee 9 | . 5 3 1 Ram . | . . . . Kick . | . . . . Crush . | . . . . Escape Stasis . | . . . . Rewire . | . . . . Trap . | . . . . Miscellaneous . | . . . . Route ------- -11/Scrapyard -10/Materials (discovered 4 exits: *Mat x2 / [*Min x2]) -9/Materials (discovered 4 exits: *Mat x2 / [*Min] / [*Sto]) -8/Materials (discovered 1 exit: [*Fac]) History --------- Turn | Location | Event 2 | -11/Scrapyard | Met Revision 17 62 | -11/Scrapyard | Discovered new exit (range 8) 83 | -11/Scrapyard | Entered Materials 202 | -10/Materials | Discovered new exit (range 10) 281 | -10/Materials | Discovered new exit (range 14) 347 | -10/Materials | Build established: Mutant 435 | -10/Materials | Discovered new exit (range 13) 573 | -10/Materials | Core integrity fell below 50% 613 | -10/Materials | Discovered new exit (range 9) 1245 | -10/Materials | Core integrity fell below 20% 1286 | -10/Materials | Lost 6 parts (1p2n1u2w) 1350 | -10/Materials | Entered another Materials area 1350 | -9/Materials | Evolved 2 slots: Utility x1, Weapon x1 1958 | -9/Materials | Discovered new exit (range 18) 2031 | -9/Materials | Build established: Gunner 2333 | -9/Materials | Discovered new exit (range 10) 2576 | -9/Materials | Discovered new exit (range 7) 2799 | -9/Materials | Repaired Shock Rifle 2964 | -9/Materials | Discovered new exit (range 16) 3100 | -9/Materials | Repaired Imp. EM Shotgun 3768 | -9/Materials | Identified exit to Materials 3770 | -9/Materials | Entered another Materials area 3770 | -8/Materials | Evolved 2 slots: Power x1, Utility x1 4025 | -8/Materials | Garrison activated, responded to threat 4102 | -8/Materials | Lost 4 parts (1p1n1u1w) 4614 | -8/Materials | Discovered new exit (range 7) 5021 | -8/Materials | Core integrity fell below 50% 5057 | -8/Materials | Core integrity fell below 20% 5075 | -8/Materials | Destroyed by C-17 Slicer with Blade Saw Last Messages --------------- The unstable cave ceiling collapses. Cesium-ion Thruster destroyed. Lgt. Nuclear Core destroyed. Acquired 36 matter. Knocked back. Dropped Reaction Control System. Acquired Imp. Carbon-fiber Leg. VTOL Module destroyed. Knocked back. C-17 Slicer knocked back. C-30 ARC bursts open, deploying its payload. G-50 Soldier unfolds itself. G-47 Trooper unfolds itself. Aerolev Unit destroyed. Acquired 4 matter. >> Machine Analyzer network decryption results: Terminal x1 Jacked C-17 Slicer... Remote Datajack severed. Imp. EM Pulse Cannon severed. Map ----- +----------------------------------------------------+ | ?????????????????????????????????????????? | | ?????????????????????????????????????????? | | ?????????????????????????????????????????? | | ?????????????????????????????????????????? | | ?????????????????????????????????????????? | | ?????????????????????????????????????????? | | ?????????????????????????????????????????? | | ?????????????????????????????????????????? | | ?????????????????????????????????????????? | | ?????????????????????????????????????????? | | ?????????????????????????????????????????? | | ?????????????????????????????????????????? | | ?????????????????????????????????????????? | | ?????????????????????????????????????????? | | ?????????????????????????????????????????? | | ?????????????????????????????????????????? | | ?????????????????????????????????????????? | | ?????????????????????????????????????????? | | ?????????????????##########??????????????? | | ?????????????????# #??????????????? | | ?????????????????# """ ########??##???? | | ?????????????????# """ # ### ##### | | ?????????????????# """ # | | ?????????????????# ] gg/ | | ????????????##+###cc"""% # | | ????????????# @ """% # # ##### | | ????????????# ## """ ## #######??# | | ????????????# ??# ## #????????#= | | ????????????+????########### #????????#= | | ???????????????????????????# #????????#= | | ???????????????????????????# #??""????# | | ???????????????????????????# #?""S????# | | ??????????????????""???????# #?""?????# | | ??????????????????"T???????# #????????## | | ??????????????????""???????# #?"""?????? | | ???????????????????????????# " #?"""?????? | | ???????????????????????????#"%"+?"""?????? | | ???????????????????????????# " #?????????? | | ???????????????????????????# #?????????? | | ???????????????????????????# #?????????? | | ???????????????????????????# ??????????? | | ???????????????????????????? ??????????? | | ?????????????????????????????????????????? | | ?????????????????????????????????????????? | | ?????????????????????????????????????????? | | ?????????????????????????????????????????? | | ?????????????????????????????????????????? | | ?????????????????????????????????????????? | | ?????????????????????????????????????????? | | ?????????????????????????????????????????? | +----------------------------------------------------+ Best States ------------- Heat Dissipation 45 Energy Generation 23 Energy Capacity 525 Matter Stores 300 Matter Capacity 300 Sight Range 18 Robot Scan Range 14 Terrain Scan Density 85 Armor Coverage 150 Utility Shielding 66 Evasion (%) 63 Targeting Accuracy 5 Recoil Reduction 2 Item Schematics ----------------- Imp. Ion Engine | -9/Materials | Scanalyzed Rocket Launcher | -9/Materials | Scanalyzed Aerolev Unit | -8/Materials | Scanalyzed Datajack | -8/Materials | Scanalyzed VTOL Module | -8/Materials | Scanalyzed Robot Schematics ------------------ None Fabricated ------------ Nothing Alien Tech Used ----------------- None Achievements -------------- Close Call Crack Shot Cya! It's Just You Novice Programmer Oops Power Corrupts Safety First Storm Trooper Troublemaker Universal Adapter Challenges ------------ None Game ------ Seed ArmorVoltaicAirjet Manual? 0 Play Time 01:05:15 Cumulative 1.5 hours Start 2024.08.24 @ 22:48:16 End 2024.08.24 @ 23:57:19 Sessions 1 Manual Loads 0 Difficulty Rogue Special Mode None Game No. 2 Rogue 2 Adventurer 0 Explorer 0 Win Type - Total 0 Types 0/0/0/0/0/0/0/0/0 Lore% 0 Gallery% 5 Achievement% 6 Wizard Run 0 Options --------- Layout 1 ASCII 0 Keyboard 0 Movement Mouse Keybinds 0 Fullscreen 1 Font 32/SmallcapsGlow Map View 50x35 Zoom Use 0% Tactical HUD 0 Map Filters NONE Filters NONE Steam 1 RUN: fb7b2f6d-6436-4e4b-97db-26d4db6c357f